Cogmind - Beta 17 @@@ ROGUE MODE // 2026.07.14 @ 17:00:35 Player: Demise Result: Destroyed by G-34 Mercenary with Small Laser Performance ------------- Evolutions (0) 0 Regions Visited (1) 200 Robots Destroyed (36) 180 Value Destroyed (582) 582 Prototype IDs (3) 60 Alien Tech Used (0) 0 Bonus (5000) 5000 TOTAL SCORE: 6022 Bonus ------- Prayed to X0-1V1 5000 Cogmind --------- Core Integrity 0/250 Matter 300/300 Energy 125/125 System Corruption 2% Temperature Cool (6) Movement Rolling (140) Ox4 Location -10/Materials Parts ------- > --- POWER (1) -------- Light Ion Engine > --- PROPULSION (2) --- Wheel Wheel > --- UTILITY (2) ------ Huge Storage Unit X0-1V1's Piety Tracker > --- WEAPON (2) ------- Assault Rifle Assault Rifle > --- INVENTORY (25) --- Light Treads Light Treads Light Treads Wheel Medium Storage Unit Large Storage Unit High-capacity Storage Unit Visual Processing Unit Sensor Array Signal Interpreter Seismic Detector Light Armor Plating Hacking Suite EM Shotgun EM Shotgun EM Shotgun EM Shotgun Assault Rifle Assault Rifle Assault Rifle Assault Rifle Assault Rifle Light Assault Rifle Grenade Launcher Hammer Peak State ------------ > --- POWER ------------ Light Ion Engine > --- PROPULSION ------- Wheel Wheel > --- UTILITY ---------- Huge Storage Unit X0-1V1's Piety Tracker > --- WEAPON ----------- Assault Rifle Assault Rifle > --- INVENTORY -------- Light Treads Light Treads Light Treads Wheel Medium Storage Unit Large Storage Unit High-capacity Storage Unit Visual Processing Unit Sensor Array Signal Interpreter Seismic Detector Light Armor Plating Hacking Suite EM Shotgun EM Shotgun EM Shotgun EM Shotgun Assault Rifle Assault Rifle Assault Rifle Assault Rifle Assault Rifle Light Assault Rifle Grenade Launcher Hammer [Rating: 22] Favorites ----------- Power Light Ion Engine Engine Light Ion Engine Propulsion Wheel Treads Light Treads Leg Aluminum Leg Wheel Wheel Utility Huge Storage Unit Device Seismic Detector Storage Huge Storage Unit Protection Light Armor Plating Weapon Light Assault Rifle Ballistic Gun Light Assault Rifle Launcher Grenade Launcher Impact Weapon Hammer Build | -11 -10 ------- Run | Yrd Mat Slots Evolved . | . . Power . | . . Propulsion . | . . Utility . | . . Weapon . | . . Parts Attached 28 | 5 23 Power 2 | . 2 Engine 2 | . 2 Core . | . . Reactor . | . . Propulsion 12 | 3 9 Treads 1 | 1 . Leg . | . . Wheel 11 | 2 9 Hover . | . . Flight . | . . Utility 7 | 2 5 Device 4 | 2 2 Storage 1 | . 1 Processor . | . . Hackware . | . . Protection 2 | . 2 Artifact . | . . Weapon 7 | . 7 Energy Gun . | . . Energy Cannon . | . . Ballistic Gun 5 | . 5 Ballistic Cannon . | . . Launcher 1 | . 1 Special Weapon . | . . Impact Weapon 1 | . 1 Slashing Weapon . | . . Piercing Weapon . | . . Special Melee Weapon . | . . Unidentified Prototypes 1 | . 1 Parts Lost 6 | . 6 Power . | . . Propulsion 4 | . 4 Utility 1 | . 1 Weapon 1 | . 1 Highest Loss Streak 2 | . 2 To Critical Strikes . | . . Average Backups 14 | 6 15 Power . | . . Propulsion 4 | 4 4 Utility 5 | . 5 Weapon 4 | 1 5 Tool/Special . | . . Unused Backups 31 | 6 25 Power 1 | . 1 Propulsion 8 | 6 2 Utility 9 | . 9 Weapon 13 | . 13 Tool/Special . | . . Average Slot Usage (%) 99 | . 99 Engine 14 | . 14 Wheel 27 | . 27 Device 10 | . 10 Storage 14 | . 14 Protection 3 | . 3 Ballistic Gun 26 | . 26 Peak Build Rating 22 | 9 22 Average Rating 8 | 8 8 On Entrance 7 | 6 9 Avg Prop Armor Cover (%) . | . . Naked Turns . | . . Heaviest Build 91 | 12 91 Greatest Support 26 | 26 26 Greatest Overweight (x) 8 | . 8 Average Overweight (x) 2 | . 3 Largest Inventory Capacity 25 | 8 25 Average Capacity 20 | 8 22 Most Carried 25 | 8 25 Average Carried 14 | 6 15 Final Capacity 25 | 8 25 Final Carried 25 | 8 25 Class Distribution -------------------- 100% | Mutant Dominant Class ---------------- Mutant | -10/Materials Resources | -11 -10 ----------- Run | Yrd Mat Matter Collected 1024 | 342 682 Remotely . | . . Salvage Created 925 | 241 684 Parts 70 | 26 44 Haulers Intercepted 1 | . 1 Recyclers Shooed 1 | . 1 Parts Field Recycled . | . . Retrieved Matter . | . . Parts Self-Destructed . | . . Prevented . | . . Parts Restored . | . . Kills | -11 -10 ------- Run | Yrd Mat Combat Hostiles Destroyed 17 | . 17 Guns 8 | . 8 AOE 9 | . 9 Classes Destroyed 10 | 3 7 Worker 7 | 2 5 Builder 1 | . 1 Tunneler 5 | 5 . Hauler 1 | . 1 Recycler 2 | 1 1 Operator 1 | . 1 Watcher 2 | . 2 Swarmer 6 | . 6 Grunt 10 | . 10 Subdweller 1 | . 1 Best Kill Streak 8 | 6 8 Combat Bots Only 3 | . 3 Max Kills in Single Turn 3 | 1 3 Gunslinging . | . . Exploded 2 | . 2 Melee . | . . Uniques/NPCs Destroyed . | . . Combat | -11 -10 -------- Run | Yrd Mat Hostile Shots Fired 88 | . 88 Missed 23 | . 23 Hits 65 | . 65 Projectile 65 | . 65 Damage Taken 1010 | . 1010 Core 251 | . 251 Absorbed by Shields . | . . Core Remaining (%) 100 | 100 . Volleys Fired 105 | 23 82 Largest 2 | 2 2 Hottest 40 | 40 40 Shots Fired 183 | 46 137 Gun 166 | 46 120 Cannon . | . . Launcher 17 | . 17 Special . | . . Kinetic 166 | 46 120 Thermal . | . . Explosive 17 | . 17 Electromagnetic . | . . Robot Hit Streak 7 | 5 7 Robot Miss Streak 6 | 4 6 Penetration Max . | . . Secondary Targets . | . . Shots Hit Robots 93 | 25 68 Core Hits 57 | 11 46 Critical Kills . | . . Critical Parts Destroyed 2 | . 2 Critical Strikes 2 | . 2 Destroy 1 | . 1 Smash 1 | . 1 Melee Attacks 2 | . 2 Impact 2 | . 2 Slashing . | . . Piercing . | . . Sneak Attacks 1 | . 1 Combat Hostiles . | . . Follow-up Attacks . | . . Damage Inflicted 2144 | 275 1869 Guns 898 | 275 623 Cannons . | . . Explosions 1171 | . 1171 Melee 75 | . 75 Ramming . | . . Kinetic 898 | 275 623 Thermal . | . . Explosive 1171 | . 1171 Electromagnetic . | . . Impact 75 | . 75 Slashing . | . . Piercing . | . . Highest Corruption 2 | . 2 Average Corruption 2 | . 2 Corruption Purged . | . . Corruption Blocked . | . . Effects 3 | . 3 Data Loss (minor) 1 | . 1 Data Loss (major) 1 | . 1 Weapon Failures 1 | . 1 Overload Shots . | . . Overflow Damage 105 | . 105 Projectiles . | . . Explosions 30 | . 30 Melee 75 | . 75 Knockbacks 1 | . 1 Impact 1 | . 1 Kinetic . | . . Secondary . | . . Self-Inflicted Damage 105 | . 105 Shots 4 | . 4 Rammed . | . . Targets Rammed . | . . Kicked . | . . Crushed . | . . Highest Temperature 20 | . 20 Average Temperature 8 | . 8 Received Heat Transfer 363 | . 363 Siege Activations . | . . Martial Activations . | . . Shielding Activations . | . . Robots Disrupted . | . . Combat Hostiles . | . . Robots Corrupted 1 | . 1 Combat Hostiles . | . . Parts Fried 1 | . 1 Impact Corruptions 2 | . 2 Robots Melted . | . . Combat Hostiles . | . . Parts Melted 2 | . 2 Heat Transferred . | . . Parts Sabotaged . | . . Parts Stolen . | . . Parts Stripped . | . . Power Chain Reactions . | . . Alert | -11 -10 ------- Run | Yrd Mat Maximum Alert Level 1 | . 1 Low Security (%) 81 | 100 79 Level 1 18 | . 20 Level 2 . | . . Level 3 . | . . Level 4 . | . . Level 5 . | . . High Security . | . . Max Security . | . . Peak Influence 244 | 10 244 Initial 6 | . 6 Average 102 | 2 111 Influence Increases 728 | 40 688 Destroy 0b10 Robot/C 320 | . 320 Destroy 0b10 Robot/NC 95 | 40 55 Destroy Leader 76 | . 76 Successful Hack 16 | . 16 Select Force Hacks 60 | . 60 Disable Machine 30 | . 30 Destroy Structure 86 | . 86 Lose Combat Pursuer 45 | . 45 Influence Decreases 495 | 30 465 Entered New Map 4 | . 4 Time Decay 441 | 30 411 Lost Part 50 | . 50 Squads Dispatched 5 | . 5 Investigation 4 | . 4 Extermination . | . . Reinforcement 1 | . 1 Assault . | . . Garrison . | . . Intercept . | . . Searches Triggered . | . . Construction Impeded . | . . Haulers Reinforced . | . . Active Scanning Responses . | . . Cargo Convoy Interrupts . | . . Stealth | -11 -10 --------- Run | Yrd Mat Distress Signals 1 | . 1 Communications Jammed . | . . Distress Signals . | . . Times Spotted 32 | . 32 Peak Tracking Total 4 | . 4 Tactical Retreats 4 | . 4 Traps | -11 -10 ------- Run | Yrd Mat Traps Triggered 1 | . 1 Indirectly . | . . Trap Hack Attempts . | . . Triggered . | . . Disarmed . | . . Reprogrammed . | . . Reused . | . . Traps Extracted . | . . Installed . | . . Triggered . | . . Machines | -11 -10 ---------- Run | Yrd Mat Machines Disabled 2 | . 2 Max in Single Turn 1 | . 1 Machines Repaired . | . . Machines Dismantled . | . . Machines Sabotaged . | . . Overloaded Fab Kills . | . . Hacking | -11 -10 --------- Run | Yrd Mat Machines Accessed 7 | . 7 Terminals 5 | . 5 Fabricators . | . . Repair Stations . | . . Recycling Units 2 | . 2 Scanalyzers . | . . Garrison Access . | . . Total Hacks 23 | . 23 Successful 12 | . 12 Failed 11 | . 11 Catastrophic 2 | . 2 Database Lockouts . | . . Manual 17 | . 17 Terminals 21 | . 21 Fabricators . | . . Repair Stations . | . . Recycling Units 2 | . 2 Scanalyzers . | . . Garrison Access . | . . Terminal Hacks 5 | . 5 Prototype ID Bank 1 | . 1 Terminal Index 1 | . 1 Locate Traps 2 | . 2 Hauler Manifests 1 | . 1 Fabricator Hacks . | . . Repair Station Hacks . | . . Recycling Unit Hacks . | . . Scanalyzer . | . . Garrison Access Hacks . | . . Unauthorized Hacks 7 | . 7 Terminals 5 | . 5 Botnet 5 | . 5 Fabricators . | . . Repair Stations . | . . Recycling Units 2 | . 2 Tunnel 2 | . 2 Scanalyzers . | . . Garrison Access . | . . Data Cores Recovered . | . . Used . | . . Hacking Detections 5 | . 5 Full Trace Events 2 | . 2 Feedback Events . | . . Feedback Blocked . | . . Robot Schematics Acquired . | . . Robots Built . | . . Authchips . | . . Time . | . . Total Robot Build Rating . | . . Part Schematics Acquired . | . . Parts Built . | . . Authchips . | . . Time . | . . Total Part Build Rating . | . . Part Studies Acquired . | . . Parts Repaired . | . . Time . | . . Parts Recycled . | . . Recycled Matter . | . . Retrieved Matter . | . . Retrieved Components . | . . Parts Scanalyzed . | . . Part Schematics Acquired . | . . Parts Damaged . | . . Bothacking | -11 -10 ------------ Run | Yrd Mat Used RIF Installer . | . . Robots Hacked . | . . Non-combat . | . . Combat . | . . Robot Hacks Applied . | . . Relay Couplers Released . | . . Fabnet Peak Effective % . | . . Robots Rewired . | . . Allies Hacked . | . . Hacks Repelled . | . . Allies | -11 -10 -------- Run | Yrd Mat Total Allies . | . . Largest Group . | . . Highest-Rated Group . | . . Highest-Rated Ally . | . . Total Orders . | . . Ally Attacks . | . . Total Damage . | . . Kills . | . . Allies Corrupted . | . . Allies Melted . | . . X0-1V1 Amusement Gains 14 | . 14 Intel | -11 -10 ------- Run | Yrd Mat Active Infowar (turns) 1010 | 85 925 Terrain 141 | 85 56 Seismic 869 | . 869 Robot Analysis Total . | . . Derelict Logs Recovered . | . . Drone Launches . | . . Drone Recoveries . | . . Exploration | -11 -10 ------------- Run | Yrd Mat Turns Passed 1409 | 118 1291 Spaces Moved 807 | 46 761 Core . | . . Treads . | . . Legs . | . . Wheels 807 | 46 761 Hover . | . . Flight . | . . Fastest Speed 90 | 90 90 Average Speed 126 | 90 128 Slowest Speed 200 | 90 200 Overloaded Moves . | . . Propulsion Burnouts . | . . Robots Hopped . | . . Potential Cave-ins . | . . Cave-ins Triggered . | . . Exploration Rate (%) 51 | 4 99 Regions Visited 1 Branch Regions . Pre-discovered Areas 2 | . 2 Known Exits Taken . | . . Unknown Exits Taken 1 | 1 . Scrap Searched . | . . Spaces Dug . | . . Terrain Destroyed 104 | . 104 Melee . | . . Projectile . | . . AOE 104 | . 104 Terrain Rammed . | . . Walls Destroyed . | . . Machines Disabled . | . . Actions | -11 -10 --------- Run | Yrd Mat Total 1040 | 87 953 Wait 32 | . 32 Move 806 | 45 761 Hop . | . . Pick Up 34 | 7 27 Fast Attach 2 | 1 1 Attach 6 | 1 5 Detach 1 | 1 . Swap 30 | 3 27 Drop 22 | 6 16 Fire 105 | 23 82 Melee 2 | . 2 Ram . | . . Kick . | . . Crush . | . . Escape Stasis . | . . Rewire . | . . Trap . | . . Miscellaneous . | . . Route ------- -11/Scrapyard -10/Materials (discovered 5 exits: [*Mat x3] / [*Min] / [*Sub]) History --------- Turn | Location | Event 23 | -11/Scrapyard | Discovered new exit (range 3) 119 | -11/Scrapyard | Entered Materials 153 | -10/Materials | Discovered new exit (range 13) 310 | -10/Materials | Build established: Mutant 451 | -10/Materials | Discovered new exit (range 15) 533 | -10/Materials | Core integrity fell below 50% 782 | -10/Materials | Discovered new exit (range 15) 919 | -10/Materials | Derelicts attacked the area 1014 | -10/Materials | Discovered new exit (range 16) 1239 | -10/Materials | Core integrity fell below 20% 1352 | -10/Materials | Discovered new exit (range 8) 1362 | -10/Materials | Made a sacrifice at D.C.S.S. Altar Unit 1410 | -10/Materials | Destroyed by G-34 Mercenary with Small Laser Last Messages --------------- 01352_ EXIT=FOUND 01362_ Connecting with D.C.S.S. Altar Unit... Core eroded from within by unknown damage source. >>sacrifice A new toy? [Achievement: Chaos Is Inevitable] 01380_ Dropped Seismic Detector. 01381_ Acquired Prototype Device. 01382_ Identified X0-1V1's Piety Tracker. 01394_ K-01 Serf collects debris. 01399_ U-05 Engineer builds a Wall. 01401_ K-01 Serf collects debris. 01402_ G-34 Mercenary destroyed. 01403_ U-05 Engineer lays Concrete. 01404_ K-01 Serf collects debris. 01404_ U-05 Engineer lays Concrete. 01405_ Extracted 86 matter. 01408_ K-01 Serf collects debris. 01410_ Extracted 6 matter. 01410_ X0-1V1 giggles madly! Map ----- +----------------------------------------------------+ | ## # | | | "T" !%= % | | T | | = = | | % ###!######### | | # #####+## "" ########## =%!??????# | | # % ## !|= "" # """ ### = ????# | | ## |%= " " + "R" #?# #???# | | ## =![ %! # " " #?# #???# | | =%! # #?# #???# | | # %! [# % #?# #???# | | # ##+######### ==# #?# #???# | | # # [# =# ######?# ##### | | # """ #"" ###??????# ## | | ## """ # """"" !#"Y # #??????# ## | | ?# """ # """"" #"" ###??????# ## | | ?# ]# """"" # # % #????????########## | | ?######### #[[ # #?????????????????# | | ?????????# # # #?????????????????# "" | | ?????????# # [[ # #?????????????????# "" | | #####????#######+###[ # #?????????????????# "" | | #?########## #?###### #?????????????????# | | " ! #?# #??????# #?????????????????#### | | " #?# ####### #??????#^!^#????????????????##### | | " ### #?????# ####???#= |#????????????????# ^ | | ## #?????# #???#!* #???????########## | | " ## #?????#### ##??#@= ######### [ ## ^ | | " ## #????????# #??## # ## ! ## | | " ## #????????# #???# k # ## ### # | | ## ##??????## #####!* # ## """"" # | | ##+## #??#???# ##g==# X# """"" # | | ! #??????# [=* # ! ## """""*+ | | #?????## + ## # | | = #????#?# # ## "" # | | ##+## #??????# ##+### <# "Y ###### | | ## ##??????## ## ## ## "" #????? | | ## #????????# ## ## ## #????? | | ## #????????# ## ## ##########????? | | ## < #????????# ## #########?????????????? | | ## #????????# ## #?????????????????????? | | ######????????###### #?????????????????????? | | #??????????????????# #?????????????????????? | | #???????????????#??#####?????????????????????? | | #??????????????????????#?????????????????????? | | #####????????????????????????????????????????????? | | ?????????????????????????????????????????????????? | | ?????????????????????????????????????????????????? | | ?????????????????????????????????????????????????? | | ?????????????????????????????????????????????????? | | | | | +----------------------------------------------------+ Best States ------------- Heat Dissipation 25 Energy Generation 10 Energy Capacity 250 Matter Stores 300 Matter Capacity 300 Sight Range 16 Terrain Scan Range 16 Terrain Scan Density 10 Armor Coverage 150 Evasion (%) 42 Item Schematics ----------------- None Robot Schematics ------------------ None Fabricated ------------ Nothing Repaired ---------- Nothing Studied --------- None Alien Tech Used ----------------- None Achievements -------------- Chaos Is Inevitable Challenges ------------ None Game ------ Seed VortexAluminumNanovents Manual? 0 Play Time 00:15:48 Cumulative 671.2 hours Start 2026.07.14 @ 16:45:26 End 2026.07.14 @ 17:00:35 Sessions 1 Manual Loads 0 Difficulty Rogue Special Mode None Game No. 564 Rogue 564 Adventurer 0 Explorer 0 Win Type - Total 9 Types 8/0/0/1/0/0/0/0/0/0 Lore% 43 Gallery% 65 Achievement% 40 Wizard Run 0 Options --------- Layout 0 ASCII 0 Keyboard 1 Movement Numpad Keybinds 0 Fullscreen 1 Font 18/SmallcapsGlow Map View 76x50 Zoom Use 0% Tactical HUD 1 Map Filters NONE Filters NONE Steam 1 RUN: 6a3d4504-3b16-41e8-ad57-2067679fdffa